{"text_format":"1","workbook":"xlsx","n_sheets":1,"sheets":["Sheet1"],"not_rendered":{"charts":0,"images":0,"macros":1,"external_links":0,"defined_names":1,"comments":0,"pivot_tables":0},"unopened":[],"bounds":{"document_bytes":16777216,"sheet_cells":100000,"rows_first":2000,"rows_last":500,"rows_between":2000,"halvings":0,"cell_chars":16384,"cell_head_chars":4096},"cells_cut":0,"cells_raw":0,"read":"whole","date_system":"1900"}

{"sheet":"Sheet1","index":0,"n_rows":36,"n_cols":18,"rows_kept":36,"cut":false,"hidden":false,"merged":[[0,14,1,14],[3,14,4,14],[16,12,17,12],[19,1,19,5],[35,0,35,5],[32,1,32,5],[31,1,31,5],[25,1,25,5],[24,1,24,5],[26,1,26,5],[27,1,27,5],[28,1,28,5],[23,1,23,5],[34,1,34,5],[33,1,33,5],[20,1,20,5],[21,1,21,5],[22,1,22,5],[29,1,29,5],[30,1,30,5],[11,16,12,17],[2,8,8,13],[11,13,12,15],[6,14,7,15],[0,0,8,7],[0,15,1,15],[0,8,0,13],[18,1,18,5],[11,7,12,11],[9,0,10,5],[9,7,10,15],[15,1,15,5],[13,11,13,12],[14,11,14,12],[15,11,15,12]]}
["INSTRUCTIONS:  Use this form when a single information collection document involves multiple reporting and recordkeeping requirements.  The totals of the figures in cols. should be entered in item 13 of OMB-83-I:                  cols. (D) &/or (I) = 13a (respondent is only counted once); cols. F & I = 13b;         cols. H & K = 13c.                                                                                                                                                                                                                                                                                                       (F)Total/(D)Total = (E)Average     (H)Total/(F)Total = (G)Average     (K)Total/(I)Total = (J)Average\nNOTE:  The columns will calculate automatically.  If Col. E's response is something other than annually, i.e., 1/6 years, list as \"1/6\" & decimal will display.    \n",null,null,null,null,null,null,null,"TITLE OF INFORMATION COLLECTION DOCUMENT",null,null,null,null,null,"OMB NO. 0578-00031"]
[]
[null,null,null,null,null,null,null,null,"Partnerships for Climate-Smart Commodities"]
[null,null,null,null,null,null,null,null,null,null,null,null,null,null,"DATE PREPARED"]
[]
[]
[null,null,null,null,null,null,null,null,null,null,null,null,null,null,"2022-06-30"]
[]
[]
["IDENTIFICATION OF REPORTING OR RECORDKEEPING REQUIREMENT",null,null,null,null,null,null,"ANNUAL BURDEN"]
[]
[null,null,null,null,null,null,null,"REPORTS",null,null,null,null,null,"RECORDS",null,null,"RESPONDENT COST"]
[]
[null,null,null,null,null,null,null,null,null,null,null,"TOTAL BURDEN HOURS",null,null,null,"TOTAL"]
[null,null,null,null,null,null,"FORMS NO (S)","NO. OF","NO OF","TOTAL ANNUAL","HOURS"," (Col. F x G)",null,"NO. OF ","ANNUAL ","RECORD-","COST","TOTAL"]
["SECTION OF","DESCRIPTION",null,null,null,null,"(If \"none\"","RESPONDENTS","RESPONSES","RESPONSES","PER  ","(H)",null,"RECORD-","HOURS PER","KEEPING HOURS","PER","COST"]
["REGS.",null,null,null,null,null,"so state)",null,"PER ","(Col. D x E)","RESPONSE",null,"NON-EXEMPT","KEEPERS","RECORD-","(Col. I x J)","HOUR","(Col. H x L)"]
[null,null,null,null,null,null,null,null,"RESPONDENT",null,null,"EXEMPT",null,null,"KEEPER"]
["(A)","(B)",null,null,null,null,"(C)","(D)","(E)","(F)","(G)",null,null,"(I)","(J)","(K)","(L)","(M)"]
[null,"Progress Reports",null,null,null,null,"None",55,2,{"$f":"SUM(H20*I20)","v":110},17,null,{"$f":"SUM(J20*K20)","v":1870},null,null,null,55.96,{"$f":"SUM(M20*Q20)","v":104645.2}]
[null,"Project Summary",null,null,null,null,"None",500,1,{"$f":"SUM(H21*I21)","v":500},10,null,{"$f":"SUM(J21*K21)","v":5000},null,null,null,55.96,279800]
[null,"Resumes",null,null,null,null,"None",500,1,500,10,null,5000,null,null,null,55.96,279800]
[null,"Support Letters",null,null,null,null,"None",500,1,500,5,null,2500,null,null,null,55.96,139900]
[]
[null,"Request for Advance or Reimbursement (OMB # 4040-0012)",null,null,null,null,"SF-270 ",55,1,{"$f":"H25","v":55},1,55]
[null,"Application for Federal Assistance** (OMB #4040-0020)",null,null,null,null,"SF-424",500,1,{"$f":"H26","v":500},16,{"$f":"K26*J26","v":8000}]
[null,"Budget Information for Non-Construction** (4040-0006)",null,null,null,null,"SF-424A",500,1,500,1,{"$f":"J27*K27","v":500}]
[null,"Assurances Non-Construction** (OMB # 4040-0007)",null,null,null,null,"SF-424B",55,1,55,1,{"$f":"J28*K28","v":55}]
[null,"Federal Financial Report** (OMB # 4040-0014)",null,null,null,null,"SF-425/SF-425A",55,1,55,4,{"$f":"K29*J29","v":220}]
[null,"Compliance and Environmental Worksheets*",null,null,null,null,null,5000,2,10000,4,{"$f":"K30*J30","v":40000}]
[null,"*Including, but not limited to: the form AD-1026-Highly Erodible Land Conservation (HELC) and Wetland Conservation (WC) Certification,  and the form CPA-052-Environmental Evaluation Worksheet. "]
[null,"**Collection is included in Progress Reports"]
[]
[null,"SUBTOTAL",null,null,null,null,null,null,null,{"$f":"SUM(J20:J23)","v":1610},null,{"$f":"SUM(L20:L32)","v":48830},{"$f":"SUM(M20:M24)","v":14370},null,null,{"$f":"SUM(P20:P33)","v":0},null,{"$f":"SUM(R20:R33)","v":804145.2}]
[null,"TOTAL OF ALL PAGES",null,null,null,null,null,null,null,{"$f":"SUM(J34)","v":1610},null,{"$f":"SUM(L34)","v":48830},{"$f":"M34","v":14370},null,null,{"$f":"SUM(P34)","v":0},null,{"$f":"SUM(R34)","v":804145.2}]
["TOTAL - COLUMNS \"F\" AND \"I\" = OMB 83-I, 13b; COLUMNS \"H\" AND \"K\" = OMB 83-I, 13c",null,null,null,null,null,null,null,null,{"$f":"SUM(J35+N35)","v":1610},null,null,{"$f":"SUM(M35+P35)","v":14370}]